[Event "44th Chess Olympiad Open 2022"]
[Site "Chennai"]
[Date "2022.08.08"]
[Round "10.9"]
[White "Moroni, Luca Jr"]
[Black "McShane, Luke J"]
[Result "0-1"]
[ECO "E46"]
[WhiteElo "2584"]
[BlackElo "2649"]
[Annotator "TA"]
[PlyCount "98"]
[EventDate "2022.07.29"]
[EventType "team-tourn"]
[EventCountry "IND"]
[SourceTitle "playchess.com"]
[Source "ChessBase"]
[SourceQuality "1"]
[WhiteTeam "Italy"]
[BlackTeam "England"]
[WhiteTeamCountry "ITA"]
[BlackTeamCountry "ENG"]
[TimeControl "40/5400+30:1800+30"]

{[%evp 9,98,-1,29,24,47,31,52,44,56,43,53,47,47,33,72,58,68,68,65,69,68,53,67,45,46,0,0,0,0,7,10,4,11,14,9,0,0,0,0,-11,-6,-24,-17,-18,-17,-22,-22,-26,0,0,0,0,0,-102,-100,-115,-80,-98,-80,-80,-80,-85,-83,-90,-99,-83,-92,-112,-116,-189,-195,-188,-188,-4133,-4133,-2766,-2479,-29962,-1307,-29979,-29963,-5177,-5085,-5065,-2700,-2091,-1321,-1166,-1165,-892,-568]} 1. d4 {[%emt 0:00:03]} Nf6 {[%emt 0:00:09]} 2. c4 {[%emt 0:00:04]} e6 {[%emt 0:00:07]} 3. Nc3 {[%emt 0:00:05]} Bb4 {[%emt 0:00:10]} 4. e3 {[%emt 0:00:04]} O-O {[%emt 0:00:29]} 5. Bd2 {[%emt 0:00:04]} d6 {[%emt 0:06:45]} 6. Bd3 {[%emt 0:01:53] E46: Nimzo-Indian: Rubinstein: 4 e3 0-0 5 Ne2 without early Bd3.} e5 {[%emt 0:01:05]} 7. Nge2 {[%emt 0:02:44]} Re8 {[%emt 0:01:19]} 8. O-O {[%emt 0:02:29] White is slightly better.} c6 {[%emt 0:04:42]} 9. Qc2 {[%emt 0:10:05]} Nbd7 {[%emt 0:02:20]} 10. a3 {[%emt 0:06:19]} Ba5 {[%emt 0:01:17]} 11. b4 {[%emt 0:04:42]} Bc7 {[%emt 0:00:12]} 12. d5 {[%emt 0:02:51]} Nf8 {[%emt 0:03:54]} 13. Ng3 {[%emt 0:04:23]} Bd7 {[%emt 0:00:42] [#]} 14. Rac1 $146 {[%emt 0:05:47]} ({Predecessor:} 14. Qb3 Rc8 15. a4 Ng6 16. a5 Rb8 17. h3 Nh4 18. f3 h6 19. Kh2 cxd5 20. cxd5 {1-0 (37) Reuss,A (2339)-Nippgen,G (2258) Germany 2005}) 14... h5 {[%emt 0:08:02]} 15. Nge4 {[%emt 0:08:42]} N8h7 {[%emt 0:00:18]} 16. Nxf6+ {[%emt 0:08:57]} Nxf6 {[%emt 0:00:05]} 17. Ne4 {[%emt 0:02:52]} (17. a4 $14 {should be considered.}) 17... cxd5 $11 {[%emt 0:02:13]} 18. Nxf6+ {[%emt 0:01:50]} Qxf6 {[%emt 0:01:02]} 19. cxd5 {[%emt 0:00:05]} Bb6 {[%emt 0:07:25]} 20. a4 {[%emt 0:06:10]} e4 {[%emt 0:01:25]} 21. Bxe4 {[%emt 0:08:08] next Bh7+ is good for White.} Bxa4 {[%emt 0:00:32]} 22. Bh7+ {[%emt 0:02:58]} Kh8 {[%emt 0:01:19]} 23. Qxa4 {[%emt 0:00:14]} Kxh7 {[%emt 0:00:05]} 24. Bc3 {[%emt 0:01:07]} Qf5 {[%emt 0:02:38]} 25. Qb5 {[%emt 0:04:45]} Re7 {[%emt 0:14:23]} 26. Bb2 {[%emt 0:01:02]} Rae8 {[%emt 0:03:03]} 27. Rfd1 {[%emt 0:01:14]} Re4 {[%emt 0:03:15]} 28. h3 {[%emt 0:00:46]} g5 {[%emt 0:03:09]} 29. Bd4 {[%emt 0:03:55]} Bxd4 {[%emt 0:04:45]} 30. Rxd4 {[%emt 0:00:06]} Rxd4 {[%emt 0:00:58]} 31. exd4 {[%emt 0:00:24][%mdl 4096] Endgame KQR-KQR} (31. Qxe8 $11 {was the only way to keep the balance.} Rd2 32. f3 Qxd5 33. Rc7 (33. Rc8 Rd1+ 34. Kh2 Qe5+ 35. Qxe5 dxe5 $11)) 31... Re7 $1 $17 {[%emt 0:02:13]} 32. Qc4 {[%emt 0:00:28]} a6 {[%emt 0:01:37] Black is more active.} 33. b5 {[%emt 0:00:57]} axb5 {[%emt 0:00:32]} 34. Qxb5 {[%emt 0:00:02]} Kg7 {[%emt 0:00:45]} 35. Qc4 {[%emt 0:00:55]} h4 {[%emt 0:02:17][%cal Bh5h4,Bh4h3][%mdl 32]} 36. Ra1 {[%emt 0:03:01]} Re4 {[%emt 0:03:52]} 37. f3 {[%emt 0:03:11] Prevents g4.} Re3 {[%emt 0:04:40]} 38. Kh1 {[%emt 0:01:00]} Qf4 {[%emt 0:09:57]} 39. Rb1 {[%emt 0:01:20]} (39. Rg1 $17 {was called for.}) 39... g4 $1 $19 {[%emt 0:01:55]} 40. hxg4 {[%emt 0:03:48]} h3 $1 {[%emt 0:00:53]} 41. Qf1 {[%emt 0:03:04]} (41. Rf1) 41... Qg3 {[%emt 0:06:55][%cal Ob7b5] And now ...b5! would win.} 42. g5 {[%emt 0:03:33]} b5 {[%emt 0:08:43][%cal Bb7b5,Bb5b4][%mdl 32] ( -> ...b4)} 43. g6 {[%emt 0:08:35] [#]} fxg6 {[%emt 0:02:28]} (43... Re1 $142 $3 {[%mdl 512]} 44. Rxe1 hxg2+ 45. Qxg2 Qxe1+ 46. Kh2 Qh4+ 47. Kg1 Qxd4+ 48. Kh1 Qa1+ 49. Kh2 Qe5+ 50. Qg3 Qxg3+ 51. Kxg3 Kxg6 52. Kf4 Kf6 53. Ke4 Kg5 54. Ke3 f5 55. Ke2 Kf4 56. Kf2 b4 57. Ke2 b3 58. Kd3 Kxf3 59. Kc3 f4 60. Kxb3 Ke3 61. Kc3 f3 62. Kb4 Kd4 63. Ka4 f2 64. Kb5 Kxd5 65. Kb4 f1=Q 66. Kb3 Qc4+ 67. Ka3 Qc2 68. Kb4 Qb2+ 69. Ka5 Kc5 70. Ka6 Qb6#) 44. Ra1 {[%emt 0:04:36]} b4 {[%emt 0:06:14]} 45. gxh3 {[%emt 0:02:12]} Rxf3 {[%emt 0:06:55] Black is clearly winning.} 46. Qg2 {[%emt 0:00:02]} Qxh3+ {[%emt 0:00:24]} 47. Qxh3 {[%emt 0:00:05]} Rxh3+ {[%emt 0:00:04]} 48. Kg2 {[%emt 0:00:07] [#]} Ra3 $1 {[%emt 0:00:19]} 49. Rc1 {[%emt 0:01:30]} Ra7 {[%emt 0:00:58] Weighted Error Value: White=0.58/Black=0.32} 0-1

[Event "44th Chess Olympiad Open 2022"]
[Site "Chennai"]
[Date "2022.08.08"]
[Round "10.9"]
[White "Brunello, Sabino"]
[Black "Haria, Ravi"]
[Result "1/2-1/2"]
[ECO "D38"]
[WhiteElo "2520"]
[BlackElo "2505"]
[Annotator "TA"]
[PlyCount "70"]
[EventDate "2022.07.29"]
[EventType "team-tourn"]
[EventCountry "IND"]
[SourceTitle "playchess.com"]
[Source "ChessBase"]
[SourceQuality "1"]
[WhiteTeam "Italy"]
[BlackTeam "England"]
[WhiteTeamCountry "ITA"]
[BlackTeamCountry "ENG"]
[TimeControl "40/5400+30:1800+30"]

{[%evp 12,70,23,18,37,30,19,6,0,6,0,15,20,29,20,22,21,12,19,25,20,34,36,17,17,14,20,3,18,20,68,10,22,0,0,0,0,-49,0,-72,-32,-24,-21,-46,-6,-8,-3,-6,-6,-6,0,0,0,0,0,0,0,0,0,0,0]} 1. d4 {[%emt 0:00:07]} d5 {[%emt 0:00:10]} 2. c4 {[%emt 0:00:25]} e6 {[%emt 0:00:22]} 3. Nf3 {[%emt 0:03:18]} Nf6 {[%emt 0:00:17]} 4. Nc3 {[%emt 0:00:04]} Bb4 {[%emt 0:00:14]} 5. Qa4+ {[%emt 0:00:52]} Nc6 {[%emt 0:00:08]} 6. e3 {[%emt 0:00:05]} O-O {[%emt 0:00:23]} 7. Bd2 {[%emt 0:00:34]} Re8 {[%emt 0:01:24] D38: Queen's Gambit Declined: Ragozin Defence (4 Nf3 Bb4).} 8. a3 {[%emt 0:00:12]} Bf8 $1 {[%emt 0:01:42] 8...Bf8 is better than 8...Bd6.} 9. Qc2 {[%emt 0:04:55]} e5 {[%emt 0:09:57]} 10. dxe5 {[%emt 0:02:59]} (10. Nxe5 {with more complications.} Nxe5 11. dxe5 Rxe5 12. cxd5 Bf5 13. Bd3) 10... Nxe5 {[%emt 0:00:16]} 11. cxd5 {[%emt 0:00:08]} Nxd5 {[%emt 0:02:15]} (11... Nxf3+ {looks sharper.} 12. gxf3 Nxd5 13. h4 Nxc3 14. Bxc3 Qd5) 12. Nxe5 {[%emt 0:00:18]} Rxe5 {[%emt 0:00:20]} 13. e4 {[%emt 0:00:08]} Nxc3 {[%emt 0:09:16]} 14. Bxc3 {[%emt 0:00:11]} Re8 {[%emt 0:01:51]} 15. Bd3 {[%emt 0:07:09] [#]} Be6 $146 {[%emt 0:04:54]} ({Predecessor:} 15... Bd6 16. O-O-O Qg5+ 17. Kb1 Be5 18. h4 Qf6 19. Bxe5 Qxe5 20. Qc1 Be6 21. f4 Qa5 {1-0 (48) Le,Q (2709)-Navara,D (2681) Prague 2022}) 16. O-O {[%emt 0:06:37][%cal Bh1f1,Bf1f3,Bf3h3][%mdl 32]} c6 {[%emt 0:02:16]} 17. f4 {[%emt 0:09:36]} Bb3 {[%emt 0:16:58]} 18. Qe2 {[%emt 0:01:54]} Qd7 {[%emt 0:02:12]} 19. Rf3 {[%emt 0:09:50]} Rad8 {[%emt 0:05:33]} 20. Kh1 {[%emt 0:21:18]} f6 {[%emt 0:14:38]} (20... f5 $11 {might be stronger.}) 21. Raf1 {[%emt 0:12:46]} ({Better is} 21. Qf2 $14) 21... Qf7 $11 {[%emt 0:01:26]} 22. Re1 {[%emt 0:03:54]} Rd7 {[%emt 0:01:43]} 23. Rh3 {[%emt 0:03:23]} Red8 {[%emt 0:05:01]} 24. g4 {[%emt 0:00:14]} (24. Rg3 $11) 24... g6 {[%emt 0:04:51]} (24... Bc5 $15) 25. e5 {[%emt 0:05:17]} (25. f5 $11) 25... Bd5+ {[%emt 0:02:22]} (25... Bc5 {feels hotter.} 26. Kg2 Bd5+ 27. Be4 fxe5 28. f5 gxf5 29. gxf5 Bd4) 26. Be4 {[%emt 0:04:13]} fxe5 {[%emt 0:05:56]} 27. fxe5 {[%emt 0:00:28]} (27. Bxe5 {is more complex.} Bc5 28. Bxd5 Qxd5+ 29. Qf3) 27... Bg7 {[%emt 0:00:44]} (27... Bc4 $5 {[%cal Rc4e2]} 28. Qe3 Rd1 $15) 28. Bxd5 {[%emt 0:01:31] The position is equal.} Qxd5+ {[%emt 0:00:12]} 29. Qe4 {[%emt 0:00:20]} Qe6 {[%emt 0:00:56]} 30. Rf3 {[%emt 0:00:40]} Rd1 {[%emt 0:01:04]} 31. Rxd1 {[%emt 0:00:20]} Rxd1+ {[%emt 0:00:05]} 32. Kg2 {[%emt 0:00:02]} Rd5 {[%emt 0:02:27]} 33. h3 {[%emt 0:00:19]} Rd8 {[%emt 0:01:09]} 34. Kg3 {[%emt 0:01:18]} Re8 {[%emt 0:01:02][%cal Rg7e5]} 35. Re3 {[%emt 0:00:32]} Rd8 {[%emt 0:01:06] Weighted Error Value: White=0.14 (very precise) /Black=0.08 (flawless)} 1/2-1/2

[Event "44th Chess Olympiad Open 2022"]
[Site "Chennai"]
[Date "2022.08.08"]
[Round "10.10"]
[White "Moussard, Jules"]
[Black "Stremavicius, Titas"]
[Result "1-0"]
[ECO "B67"]
[WhiteElo "2672"]
[BlackElo "2532"]
[Annotator "TA"]
[PlyCount "77"]
[EventDate "2022.07.29"]
[EventType "team-tourn"]
[EventCountry "IND"]
[SourceTitle "playchess.com"]
[Source "ChessBase"]
[SourceQuality "1"]
[WhiteTeam "France"]
[BlackTeam "Lithuania"]
[WhiteTeamCountry "FRA"]
[BlackTeamCountry "LTU"]
[TimeControl "40/5400+30:1800+30"]

{[%evp 16,77,23,22,24,20,28,11,27,17,38,12,43,38,40,39,43,36,36,27,79,71,63,70,97,66,76,75,70,70,78,62,99,111,180,139,268,271,261,273,258,271,270,270,257,253,243,165,376,313,378,375,346,325,412,386,403,383,410,400,435,428,414,381]} 1. e4 {[%emt 0:00:02]} c5 {[%emt 0:00:09]} 2. Nf3 {[%emt 0:00:06]} d6 {[%emt 0:00:08]} 3. d4 {[%emt 0:00:15]} cxd4 {[%emt 0:00:06]} 4. Nxd4 {[%emt 0:00:04]} Nf6 {[%emt 0:00:09]} 5. Nc3 {[%emt 0:00:05]} Nc6 {[%emt 0:00:08]} 6. Bg5 {[%emt 0:00:17]} e6 {[%emt 0:00:10]} 7. Qd2 {[%emt 0:03:00]} a6 {[%emt 0:00:08]} 8. O-O-O {[%emt 0:01:00]} Bd7 {[%emt 0:00:11]} 9. Kb1 {[%emt 0:02:34]} Be7 {[%emt 0:07:54] B67: Sicilian: Richter-Rauzer: 7...a6 8 0-0-0 Bd7, lines without 9 f4 Be7.} 10. Nxc6 {[%emt 0:02:51]} Bxc6 {[%emt 0:00:20]} 11. f3 {[%emt 0:00:37]} Qc7 {[%emt 0:02:34] The position is equal.} 12. h4 {[%emt 0:08:14]} h6 {[%emt 0:00:43]} 13. Be3 {[%emt 0:04:45]} h5 {[%emt 0:01:13]} 14. Bg5 {[%emt 0:08:53]} b5 {[%emt 0:01:54]} 15. Ne2 {[%emt 0:06:21][%cal Bc3e2,Be2f4,Bf4d5][%mdl 32]} Bd7 {[%emt 0:00:57] [#]} 16. Nf4 $146 {[%emt 0:05:26]} ({Predecessor:} 16. Nd4 Qb6 17. Qe1 b4 18. Bc4 O-O 19. f4 Qc5 20. Bb3 a5 21. e5 dxe5 22. fxe5 {1-0 (63) Stefansson,H (2523)-Low,Z (2437) Prague 2018}) 16... Rb8 {[%emt 0:09:24]} 17. Rc1 {[%emt 0:03:45]} e5 {[%emt 0:11:28]} (17... a5 $11 {remains equal.}) 18. Bxf6 $16 {[%emt 0:00:31]} Bxf6 {[%emt 0:00:07]} 19. Nd5 {[%emt 0:00:05]} Qd8 {[%emt 0:00:07] Black is now going downhill.} 20. g3 {[%emt 0:04:56]} Be6 {[%emt 0:01:56]} 21. c4 {[%emt 0:01:59]} O-O {[%emt 0:01:48]} 22. cxb5 {[%emt 0:02:10]} axb5 {[%emt 0:00:48]} 23. Rc6 {[%emt 0:04:15][%cal Oc6d6] Strongly threatening Rxd6!} Be7 {[%emt 0:13:34]} 24. Be2 {[%emt 0:02:33] 0x0.001b83d47996dp-1022s more active pieces.} ({Reject} 24. Nxe7+ $6 Qxe7 25. Rxd6 Ra8 $11) 24... f5 {[%emt 0:00:10]} (24... Rb7 $16) 25. Rd1 {[%emt 0:06:15]} f4 {[%emt 0:05:36]} (25... fxe4 $16 {keeps fighting.} 26. fxe4 Rf2) 26. gxf4 $18 {[%emt 0:01:37]} exf4 {[%emt 0:03:31]} 27. Nxe7+ {[%emt 0:00:58]} ({But not} 27. Nxf4 $6 Bf7 28. Rg1 Qe8 $16) 27... Qxe7 {[%emt 0:00:08]} 28. Qxd6 {[%emt 0:00:05]} Qxd6 {[%emt 0:00:07]} 29. Rdxd6 {[%emt 0:00:06]} ({Don't do} 29. Rcxd6 $6 Bf7 30. Bf1 b4 $16) 29... Bf7 {[%emt 0:00:21]} 30. Rc7 {[%emt 0:02:15]} Be8 {[%emt 0:05:22]} 31. Bd1 {[%emt 0:02:41] [#] Black must now prevent Bb3+.} Rf6 $2 {[%emt 0:00:23]} (31... Bf7 {is a better defense.} 32. Be2 Be8) 32. Bb3+ {[%emt 0:03:54]} Kf8 {[%emt 0:00:09]} 33. Rxf6+ {[%emt 0:00:21]} gxf6 {[%emt 0:00:03][%mdl 4096] Endgame KRB-KRB} 34. a3 {[%emt 0:00:54]} Rd8 {[%emt 0:01:27]} 35. Kc2 {[%emt 0:03:10] Inhibits Rd3.} Rd6 {[%emt 0:01:24]} 36. Kc3 {[%emt 0:00:51]} Bd7 {[%emt 0:00:06]} 37. Rc5 {[%emt 0:02:14]} Kg7 {[%emt 0:05:42]} 38. Rxh5 {[%emt 0:01:21]} Rc6+ {[%emt 0:01:42]} 39. Kd4 {[%emt 0:01:23] Weighted Error Value: White=0.08 (flawless) /Black=0.36} 1-0

[Event "44th Chess Olympiad Open 2022"]
[Site "Chennai"]
[Date "2022.08.08"]
[Round "10.10"]
[White "Lagarde, Maxime"]
[Black "Pultinevicius, Paulius"]
[Result "0-1"]
[ECO "B12"]
[WhiteElo "2631"]
[BlackElo "2539"]
[Annotator "TA"]
[PlyCount "92"]
[EventDate "2022.07.29"]
[EventType "team-tourn"]
[EventCountry "IND"]
[SourceTitle "playchess.com"]
[Source "ChessBase"]
[SourceQuality "1"]
[WhiteTeam "France"]
[BlackTeam "Lithuania"]
[WhiteTeamCountry "FRA"]
[BlackTeamCountry "LTU"]
[TimeControl "40/5400+30:1800+30"]

{[%evp 12,92,0,-25,0,-82,13,13,22,22,38,29,90,0,0,0,36,32,31,0,0,0,141,152,141,147,139,147,138,143,116,0,0,0,0,0,0,0,0,0,0,0,0,0,0,-442,-191,-201,-150,-145,-141,-145,-152,-186,-94,-381,-196,-189,-162,-170,-162,-532,-508,-769,-759,-683,-514,-500,-449,-434,-420,-420,-420,-420,-414,-405,-404,-497,-426,-572,-566,-558,-535]} 1. e4 {[%emt 0:00:02]} c6 {[%emt 0:00:05]} 2. d4 {[%emt 0:00:04]} d5 {[%emt 0:00:04]} 3. e5 {[%emt 0:00:02]} Bf5 {[%emt 0:00:05]} 4. h4 {[%emt 0:00:10]} h5 {[%emt 0:00:06]} 5. c4 {[%emt 0:00:27]} e6 {[%emt 0:00:06]} 6. Nc3 {[%emt 0:00:05]} Ne7 {[%emt 0:05:36]} 7. Bg5 {[%emt 0:12:56]} Qb6 $1 {[%emt 0:04:21][%mdl 4] is recently more successful than 7...dxc4. B12: Caro-Kann: Advance Variation.} 8. Rc1 {[%emt 0:00:16]} (8. Qd2 $11) 8... dxc4 {[%emt 0:15:56]} ({Black should play} 8... Qxb2 $17 9. Nf3 Nd7) 9. Bxc4 $11 {[%emt 0:00:49] [#]} Qxb2 $146 {[%emt 0:01:19] The position is equal.} ({Predecessor:} 9... Nd7 10. Nge2 O-O-O 11. Qa4 Kb8 12. b4 f6 13. exf6 Nxf6 14. b5 Ned5 15. bxc6 Qxc6 16. Qxc6 bxc6 {1-0 (50) Kivisto,M (2307)-Kytoniemi,J (2280) Finland 2006}) 10. Nge2 {[%emt 0:07:02]} Nd7 {[%emt 0:18:52]} 11. O-O {[%emt 0:08:26]} Rd8 {[%emt 0:32:47]} (11... Nb6 $11 12. Bd3 Qa3) 12. Ng3 {[%emt 0:30:48]} ({Better is} 12. Bd3 $16) 12... Nxe5 $1 {[%emt 0:00:29]} 13. Bb3 {[%emt 0:00:52]} Bg6 {[%emt 0:02:23]} (13... Rd7 $5 {[%cal Rf5g6]}) 14. f4 {[%emt 0:08:19]} Ng4 {[%emt 0:02:33]} 15. Qe1 {[%emt 0:03:33]} (15. f5 $5 exf5 16. Bf4 $17) 15... Bf5 {[%emt 0:09:40]} 16. d5 {[%emt 0:06:09]} f6 {[%emt 0:01:49]} (16... Bd3 $11 {remains equal.} 17. Rf3 Ng6 $1) 17. Nxf5 $16 {[%emt 0:04:22]} exf5 {[%emt 0:00:17] [#]} 18. Qe6 $1 {[%emt 0:02:03][%cal Od5c6]} Qd2 {[%emt 0:01:08]} 19. dxc6 {[%emt 0:04:14][%csl Gb3][%cal Re6f7]} (19. d6 $2 Qd4+ 20. Kh1 Rxd6 $19) 19... Qe3+ {[%emt 0:00:08]} 20. Qxe3 {[%emt 0:00:52]} Nxe3 {[%emt 0:00:05]} 21. cxb7 {[%emt 0:01:15]} Nxf1 $11 {[%emt 0:00:56] Pair of Knights!} (21... fxg5 22. Rfe1 gxf4 23. Ne2 $18) 22. Nb5 {[%emt 0:00:08]} Ng3 {[%emt 0:02:12]} (22... fxg5 $2 23. Nd6+ Kd7 24. Nc8 Rxc8 25. Rxc8 Nxc8 26. Be6+ Kxe6 27. bxc8=Q+ Kd5 28. Qxf5+ Kd4 29. Kxf1 gxh4 30. Ke2 $18) 23. Be6 {[%emt 0:04:45][%cal Rb5c7]} Rb8 {[%emt 0:00:04] aiming for ...Ne2+.} (23... Ne2+ $2 24. Kf2 Rb8 25. Kxe2 fxg5 26. Nd6+ Kd8 27. Nf7+ Ke8 28. Rc7 $18) 24. Nd6+ {[%emt 0:01:28]} Kd8 {[%emt 0:00:04]} 25. Nf7+ {[%emt 0:00:15]} Ke8 {[%emt 0:00:05]} 26. Nd6+ {[%emt 0:02:59]} Kd8 {[%emt 0:00:04]} 27. Nf7+ {[%emt 0:00:41]} Ke8 {[%emt 0:00:05]} 28. Rd1 $2 {[%emt 0:00:35][%mdl 8192]} Nc6 {[%emt 0:02:39]} 29. Nxh8 $19 {[%emt 0:00:30]} Rxb7 {[%emt 0:00:06]} 30. Kh2 {[%emt 0:00:24] [#]} Ne2 $36 {[%emt 0:00:35][%mdl 2048] Strongly threatening ...Ncd4. White is under strong pressure.} ({And not} 30... fxg5 31. Kxg3 gxf4+ 32. Kh3 $17) 31. Bxf5 {[%emt 0:00:46]} fxg5 {[%emt 0:00:08]} 32. fxg5 {[%emt 0:00:29]} Ne5 {[%emt 0:01:05]} (32... Ncd4 $19 33. Bg6+ Kd7) 33. Ng6 $2 {[%emt 0:00:06][%mdl 8192]} (33. Rd5 $17 Nd7 34. Rd2) 33... Ng4+ {[%emt 0:00:35]} (33... Rf7 $142 34. Nxe5 Rxf5) 34. Bxg4 {[%emt 0:00:29]} hxg4 {[%emt 0:00:05][%cal Bh5g4,Bg4g3][%mdl 32]} 35. Rd2 {[%emt 0:00:13]} Nc3 {[%emt 0:00:12] White must now prevent ...Ne4.} 36. Rd4 {[%emt 0:01:17] Inhibits Ne4.} (36. Nxf8 {is more resistant.} Kxf8 37. Rc2) 36... Rb4 {[%emt 0:00:22]} 37. Rd3 {[%emt 0:00:13]} (37. Rxb4 $142 Bxb4 38. Kg3) 37... Ne4 {[%emt 0:00:38] ...g3+ is the strong threat.} 38. a3 {[%emt 0:00:25]} Ra4 {[%emt 0:00:14]} 39. Nxf8 {[%emt 0:00:36][%mdl 4096] Endgame KRN-KRN} g3+ {[%emt 0:00:07]} 40. Kg1 {[%emt 0:00:03]} Kxf8 {[%emt 0:00:04] KRN-KR} 41. Kf1 {[%emt 0:08:44]} Kf7 {[%emt 0:00:04]} 42. h5 {[%emt 0:01:09]} Nxg5 {[%emt 0:01:25] Threatens to win with ...Ne4.} 43. Rxg3 {[%emt 0:00:06]} Kf6 {[%emt 0:00:26]} 44. Rd3 {[%emt 0:02:21]} Ne4 {[%emt 0:00:28] Black is clearly winning.} 45. Ke2 {[%emt 0:00:41]} Kg5 {[%emt 0:00:22]} 46. Rd5+ {[%emt 0:01:43]} Kg4 {[%emt 0:01:39] Quite a comeback for Black.  Weighted Error Value: White=0.60/Black=0.50} 0-1

[Event "44th Chess Olympiad Open 2022"]
[Site "Chennai"]
[Date "2022.08.08"]
[Round "10.10"]
[White "Kazakouski, Valery"]
[Black "Maurizzi, Marc`Andria"]
[Result "1-0"]
[ECO "E90"]
[WhiteElo "2528"]
[BlackElo "2506"]
[Annotator "TA"]
[PlyCount "89"]
[EventDate "2022.07.29"]
[EventType "team-tourn"]
[EventCountry "IND"]
[SourceTitle "playchess.com"]
[Source "ChessBase"]
[SourceQuality "1"]
[WhiteTeam "Lithuania"]
[BlackTeam "France"]
[WhiteTeamCountry "LTU"]
[BlackTeamCountry "FRA"]
[TimeControl "40/5400+30:1800+30"]

{[%evp 24,88,79,70,58,65,64,67,75,75,75,75,75,75,81,74,75,76,83,80,158,152,176,150,183,123,190,190,183,183,186,205,256,258,306,298,283,241,284,282,551,507,504,500,810,770,2891,2597,6295,5389,2405,2085,29985,29986,29987,29988,29988,29987,29995,29996,29996,29997,29997,29998,29998,29999,29999]} 1. d4 {[%emt 0:00:04]} Nf6 {[%emt 0:00:17]} 2. c4 {[%emt 0:00:08]} g6 {[%emt 0:01:14]} 3. Nc3 {[%emt 0:01:10]} Bg7 {[%emt 0:00:39]} 4. e4 {[%emt 0:00:39]} O-O {[%emt 0:00:28]} 5. h3 {[%emt 0:00:20]} d6 {[%emt 0:01:09]} 6. Be3 {[%emt 0:00:11]} c5 {[%emt 0:02:25]} 7. d5 {[%emt 0:00:27]} e6 {[%emt 0:01:17]} 8. Bd3 {[%emt 0:00:17]} exd5 {[%emt 0:10:27]} 9. exd5 {[%emt 0:00:23]} Re8 {[%emt 0:01:06]} 10. Nf3 {[%emt 0:00:24]} Bh6 {[%emt 0:07:46]} 11. O-O {[%emt 0:00:43]} Bxe3 {[%emt 0:00:02]} 12. fxe3 {[%emt 0:00:13]} Nbd7 {[%emt 0:00:01]} 13. Qd2 {[%emt 0:05:49]} Nh5 {[%emt 0:06:13] E90: King's Indian: Classical: Early deviations and 6 h3.} 14. g4 {[%emt 0:14:56] Against f5} Ng7 {[%emt 0:03:31] [#]} 15. e4 $5 $146 {[%emt 0:14:39][%mdl 8] New and interesting.} ({Predecessor:} 15. Ne4 Qe7 16. Qh2 f5 17. Nxd6 Qxe3+ 18. Kh1 Qxd3 19. Nxe8 Nxe8 20. g5 Qxc4 21. Rfe1 {½-½ (29) Kveinys,A (2491)-Ortiz Suarez,I (2577) Greensboro 2015}) 15... Ne5 {[%emt 0:05:34] [#] White is slightly better.} 16. Qh6 $1 {[%emt 0:08:20][%cal Of3g5] And now Ng5! would win.} f6 {[%emt 0:01:10] Against Ng5} 17. Nxe5 {[%emt 0:03:31]} Rxe5 {[%emt 0:00:03]} 18. Rf2 $36 {[%emt 0:01:40][%mdl 2048] White is in control.} Qe7 {[%emt 0:03:34]} 19. Raf1 {[%emt 0:01:17]} Ne8 {[%emt 0:00:03]} 20. Nb1 {[%emt 0:02:23][%cal Bc3b1,Bb1d2,Bd2f3][%mdl 32]} Qg7 {[%emt 0:04:50]} 21. Qf4 {[%emt 0:05:22]} h5 {[%emt 0:02:24] [#]} (21... b6 $142) 22. Rg2 $1 $16 {[%emt 0:01:24]} Bd7 {[%emt 0:06:57] [#]} 23. Nd2 $1 {[%emt 0:02:44]} g5 {[%emt 0:01:53]} 24. Qf2 {[%emt 0:01:55]} (24. Qe3 $18) 24... h4 {[%emt 0:01:22]} (24... b6 $16) 25. Nf3 $18 {[%emt 0:06:34]} Re7 {[%emt 0:00:01]} 26. e5 {[%emt 0:04:23]} dxe5 {[%emt 0:01:21] ...e4 is the strong threat.} 27. Qxc5 {[%emt 0:00:23]} b6 {[%emt 0:04:17]} (27... e4 $2 28. Re1 Rc8 29. Qb4) 28. Qa3 {[%emt 0:01:10]} (28. Qe3 e4 29. Re1 (29. Bxe4 $2 Nd6 $19) 29... exf3 $17) 28... e4 {[%emt 0:06:49]} 29. Re1 {[%emt 0:01:11]} e3 {[%emt 0:13:24]} 30. Nd4 {[%emt 0:04:31]} Rc8 {[%emt 0:01:38]} 31. Rge2 {[%emt 0:05:44]} f5 $2 {[%emt 0:01:07]} (31... Qf8 {is a better defense.} 32. b3 (32. Rxe3 Rxe3 33. Qxf8+ Kxf8 $18) 32... Ra8) 32. Nxf5 {[%emt 0:00:47]} Bxf5 {[%emt 0:00:09]} 33. Bxf5 {[%emt 0:00:08]} Rxc4 {[%emt 0:00:05]} (33... Rd8 $142 34. Rxe3 Rxe3 35. Qxe3 Nd6 36. Qe6+ Kh8) 34. d6 {[%emt 0:02:01]} Qe5 {[%emt 0:08:52]} 35. Rxe3 {[%emt 0:00:43]} ({Stronger than} 35. dxe7 Qg3+ 36. Kh1 Qxh3+ 37. Kg1 Qg3+ 38. Kh1 Qh3+ 39. Kg1 Qg3+ 40. Kh1 Qh3+ $11) 35... Qg3+ {[%emt 0:00:48]} 36. Rxg3 {[%emt 0:01:25] Active counter play!} Rxe1+ {[%emt 0:00:01]} 37. Kf2 {[%emt 0:02:10][%cal Bg1f2,Bf2e1,Be1d2][%mdl 32]} hxg3+ {[%emt 0:00:04]} 38. Kxe1 {[%emt 0:00:17] White mates.} Rc1+ {[%emt 0:00:04]} 39. Kd2 {[%emt 0:00:10]} g2 {[%emt 0:00:02]} 40. Qe3 {[%emt 0:00:42]} g1=Q {[%emt 0:00:30]} 41. Qxe8+ {[%emt 0:30:07]} Kg7 {[%emt 0:30:01]} 42. Qe7+ {[%emt 0:00:08]} Kg8 {[%emt 0:00:07]} 43. Be6+ {[%emt 0:00:05]} Kh8 {[%emt 0:00:03]} 44. Qf8+ {[%emt 0:00:07]} Kh7 {[%emt 0:00:02]} 45. Bf5# {[%emt 0:00:39] Weighted Error Value: White=0.05 (flawless) /Black=0.48} 1-0